bitfinex/quotes_SOLUSD_20241113
["timestamp","ask_amount","ask_price","bid_price","bid_amount"]
[1731532317379,35.54116816,209.12,209.04,35.54116816]
[1731532317560,35.54116816,209.12,209.03,16.744]
[1731532317756,35.54116816,209.14,209.04,35.54116816]
[1731532317955,35.54116816,209.14,209.03,16.744]
[1731532317956,35.54116816,209.14,209.06,35.54116816]
[1731532318362,0.4932066,209.15,209.06,35.54116816]
[1731532318573,0.4932066,209.15,209.04,35.54116816]
[1731532318775,0.4932066,209.15,209.06,35.54116816]
[1731532318964,0.4932066,209.15,209.08,35.54116816]
[1731532320281,35.54116816,209.13,209.04,35.54116816]
[1731532320659,35.54116816,209.11,209.02,35.54116816]
[1731532320860,0.4932066,209.15,209.06,35.54116816]
[1731532321079,0.4932066,209.15,209.0,35.54116816]
[1731532321080,0.4932066,209.15,209.08,35.54116816]
[1731532321284,0.4932066,209.15,209.1,35.54116816]
[1731532321476,0.4932066,209.15,209.08,35.54116816]
[1731532321989,35.54116816,209.14,209.06,35.54116816]
[1731532322168,35.54116816,209.12,209.02,35.54116816]
[1731532322885,35.54116816,209.08,209.0,35.54116816]
[1731532323062,35.54116816,209.01,208.93,35.54116816]
[1731532323264,35.54116816,209.07,208.97,35.54116816]
[1731532323567,35.54116816,209.07,208.99,35.54116816]
[1731532323770,35.54116816,209.03,208.95,35.54116816]
[1731532324560,35.54116816,209.03,208.93,35.54116816]
[1731532324787,35.54116816,208.97,208.89,35.54116816]
[1731532324989,35.54116816,208.99,208.91,35.54116816]
[1731532325165,35.54116816,209.01,208.93,35.54116816]
[1731532325360,40.32576816,209.01,208.93,35.54116816]
[1731532325669,35.54116816,208.99,208.91,35.54116816]
[1731532326069,40.32576816,209.01,208.93,35.54116816]
[1731532326265,0.2,209.03,208.95,35.54116816]
[1731532326266,35.54116816,209.03,208.95,35.54116816]
[1731532326459,40.32526816,209.03,208.95,35.54116816]
[1731532326665,4.783,209.07,208.98,35.54116816]
[1731532326876,35.54116816,209.05,208.96,35.54116816]
[1731532327079,40.32486816,209.05,208.96,35.54116816]
[1731532327489,35.54116816,209.03,208.95,11.9641]
[1731532327990,35.54116816,209.01,208.92,35.54116816]
[1731532328217,35.54116816,208.95,208.86,35.54116816]
[1731532328366,35.54116816,208.87,208.77,4.7899]
[1731532328565,35.54116816,208.87,208.77,35.54116816]
[1731532328566,35.64116816,208.87,208.77,35.54116816]
[1731532329073,4.7869,208.9,208.83,35.54116816]
[1731532329388,35.54116816,208.89,208.81,35.54116816]
[1731532329967,35.54116816,208.93,208.84,35.54116816]
[1731532330367,35.54116816,208.95,208.86,35.54116816]
[1731532330581,54.68966216,208.95,208.86,35.54116816]
[1731532330770,35.54116816,208.89,208.74,40.7204]
[1731532331094,35.54116816,208.89,208.8,35.54116816]
[1731532331271,4.787,208.9,208.84,35.54116816]
[1731532331473,4.7866,208.92,208.84,35.54116816]
[1731532331979,40.32776816,208.92,208.82,35.54116816]
[1731532332384,40.32776816,208.92,208.84,35.54116816]
[1731532332572,19.146134,208.98,208.87,35.54116816]
[1731532332768,35.54116816,208.93,208.83,35.54116816]
[1731532333193,35.54116816,208.91,208.83,35.54116816]
[1731532333575,35.54116816,208.95,208.87,35.54116816]
[1731532334489,35.54116816,208.95,208.85,35.54116816]
[1731532334688,35.54116816,208.95,208.85,40.32916816]
[1731532334990,35.54116816,208.95,208.85,52.29946816]
[1731532335290,35.54116816,208.89,208.8,11.9728]
[1731532335474,35.54116816,208.91,208.81,35.54116816]
[1731532335992,35.54116816,208.99,208.88,35.54116816]
[1731532336193,35.54116816,209.03,208.92,35.54116816]
[1731532336491,35.54116816,209.07,208.96,35.54116816]
[1731532336676,35.54116816,209.07,208.97,16.7487]
[1731532337394,35.54116816,209.05,208.97,16.7487]
[1731532337691,35.54116816,209.07,208.97,16.7487]
[1731532337901,35.54116816,209.09,209.0,35.54116816]
[1731532338191,35.54116816,209.16,209.06,35.54116816]
[1731532338599,35.54116816,209.18,209.08,35.54116816]
[1731532338800,35.54116816,209.18,209.1,35.54116816]
[1731532338970,35.54116816,209.16,209.09,16.7391]
[1731532339576,35.54116816,209.18,209.09,16.7391]
[1731532339767,0.1,209.23,209.09,16.7391]
[1731532339768,35.54116816,209.16,209.09,16.7391]
[1731532340191,35.54116816,209.18,209.09,16.7391]
[1731532341272,5.60834496,209.27,209.13,35.54116816]
[1731532341493,35.54116816,209.21,209.11,35.54116816]
[1731532341699,35.54116816,209.17,209.09,35.54116816]
[1731532342395,35.54116816,209.21,209.13,35.54116816]
[1731532342587,35.54116816,209.21,209.11,35.54116816]
[1731532342981,35.54116816,209.21,209.03,16.744]
[1731532342982,36.03437476,209.15,209.07,35.54116816]
[1731532343182,35.54116816,209.13,209.05,35.54116816]
[1731532343383,35.54116816,209.09,209.03,11.96]
[1731532343588,35.54116816,209.07,208.99,35.54116816]
[1731532343995,35.54116816,209.11,209.01,35.54116816]
[1731532344503,35.54116816,209.09,209.01,35.54116816]
[1731532344805,35.54116816,209.09,208.98,16.7479]
[1731532344806,35.54116816,209.09,208.99,35.54116816]
[1731532344982,35.54116816,209.07,208.99,35.54116816]
[1731532345377,35.54116816,209.07,209.0,4.7846]
[1731532345580,35.54116816,209.05,208.98,16.7478]
[1731532346203,35.54116816,209.03,208.93,11.9653]
[1731532346377,35.54116816,209.07,208.99,35.54116816]
[1731532346578,35.54116816,209.07,208.97,35.54116816]
[1731532347411,40.32376816,209.09,208.99,35.54116816]
[1731532347623,35.54116816,209.07,208.99,35.54116816]
[1731532348610,35.54116816,209.07,208.98,16.7479]
[1731532349184,35.54116816,209.07,208.99,35.54116816]
[1731532349400,4.7833,209.06,208.98,16.7479]
[1731532349604,35.54116816,209.03,208.96,4.7855]
[1731532349909,35.54116816,209.03,208.95,35.54116816]
[1731532349910,35.54116816,208.99,208.93,11.9653]
[1731532350201,35.54116816,208.99,208.89,23.9352]
[1731532350202,35.54116816,208.97,208.89,40.32816816]
[1731532350509,35.54116816,208.93,208.85,35.54116816]
[1731532350804,35.54116816,208.93,208.86,11.9697]
[1731532351109,35.54116816,208.89,208.81,11.9721]
[1731532351404,4.787,208.9,208.82,35.54116816]
[1731532351707,4.787,208.9,208.8,35.54116816]
[1731532351708,35.54116816,208.89,208.8,35.54116816]
[1731532351911,35.54116816,208.85,208.77,35.54116816]
[1731532352085,35.54116816,208.87,208.79,35.54116816]
[1731532352394,35.54116816,208.89,208.81,35.54116816]
[1731532352593,35.54116816,208.87,208.77,35.54116816]
[1731532352788,35.54116816,208.85,208.77,35.54116816]
[1731532352986,35.54116816,208.87,208.77,35.54116816]
[1731532353190,35.54116816,208.89,208.79,35.54116816]
[1731532353398,35.54116816,208.89,208.77,35.54116816]
[1731532353399,35.54116816,208.85,208.77,35.54116816]
[1731532353882,35.54116816,208.87,208.77,40.33096816]
[1731532354088,35.54116816,208.87,208.77,52.30586816]
[1731532354316,35.54116816,208.89,208.79,35.54116816]
[1731532354483,35.54116816,208.87,208.79,35.54116816]
[1731532354879,40.32846816,208.89,208.79,35.54116816]
[1731532355305,35.54116816,208.87,208.79,35.54116816]
[1731532355686,35.54116816,208.87,208.78,4.7896]
[1731532356208,35.54116816,208.85,208.78,11.9743]
[1731532356390,35.54116816,208.85,208.78,16.764]
[1731532356998,35.54116816,208.89,208.81,35.54116816]
[1731532357205,35.54116816,208.93,208.85,35.54116816]
[1731532357504,35.54116816,208.95,208.87,35.54116816]
[1731532358499,35.54116816,208.95,208.88,16.7559]
[1731532358905,35.54116816,208.91,208.84,4.7882]
[1731532359112,35.54116816,208.89,208.79,35.54116816]
[1731532359307,35.54116816,208.84,208.75,35.54116816]
[1731532359606,35.54116816,208.9,208.73,35.54116816]
[1731532359607,35.54116816,208.82,208.73,35.54116816]
[1731532359784,35.54116816,208.8,208.73,35.54116816]
[1731532359984,35.54116816,208.74,208.66,16.7733]
[1731532360193,35.54116816,208.7,208.66,16.7733]
[1731532360396,35.54116816,208.72,208.66,11.981]
[1731532361389,35.54116816,208.72,208.65,35.54116816]
[1731532361390,35.54116816,208.68,208.61,16.777]
[1731532361608,35.54116816,208.62,208.55,12.058]
[1731532361919,35.54116816,208.58,208.53,4.7954]
[1731532362494,35.54116816,208.54,208.46,35.54116816]
[1731532362696,24.7922,208.67,208.52,35.54116816]
[1731532363011,35.54116816,208.64,208.54,35.54116816]
[1731532363607,35.54116816,208.6,208.52,35.54116816]
[1731532363806,35.54116816,208.56,208.43,0.1]
[1731532364114,35.54116816,208.6,208.51,35.54116816]
[1731532364606,35.54116816,208.58,208.51,16.7854]
[1731532365484,35.54116816,208.54,208.46,11.9926]
[1731532365689,35.54116816,208.54,208.47,4.7967]
[1731532366312,35.54116816,208.58,208.49,35.54116816]
[1731532366485,35.54116816,208.58,208.5,16.7865]
[1731532366688,35.54116816,208.6,208.51,35.54116816]
[1731532366898,35.54116816,208.64,208.55,35.54116816]
[1731532367103,35.54116816,208.68,208.59,35.54116816]
[1731532367415,35.54116816,208.66,208.57,35.54116816]
[1731532368013,35.54116816,208.6,208.53,35.54116816]
[1731532368316,35.54116816,208.7,208.5,16.7865]
[1731532368317,35.54116816,208.58,208.5,11.9904]
[1731532368513,35.54116816,208.58,208.5,16.7865]
[1731532368825,0.1,208.76,208.57,35.54116816]
[1731532369114,0.1,208.76,208.53,0.2]
[1731532369115,4.7901,208.76,208.53,0.2]
[1731532369416,35.54116816,208.66,208.57,35.54116816]
[1731532369805,35.54116816,208.68,208.59,35.54116816]
[1731532370144,35.54116816,208.66,208.57,35.54116816]
[1731532370489,35.54116816,208.68,208.59,35.54116816]
[1731532370911,35.54116816,208.64,208.55,35.54116816]
[1731532371097,35.54116816,208.62,208.52,16.7849]
[1731532371798,4.35625879,208.85,208.52,16.7849]
[1731532371799,35.54116816,208.69,208.59,35.54116816]
[1731532372006,35.54116816,208.71,208.63,35.54116816]
[1731532372391,35.54116816,208.73,208.63,35.54116816]
[1731532372615,35.54116816,208.71,208.61,35.54116816]
[1731532372826,35.54116816,208.69,208.61,35.54116816]
[1731532373113,4.8901,208.76,208.54,16.7833]
[1731532373114,35.54116816,208.63,208.54,16.7833]
[1731532373487,35.54116816,208.59,208.54,16.7833]
[1731532373689,35.54116816,208.59,208.54,11.9881]
[1731532374410,35.54116816,208.61,208.54,16.7833]
[1731532374725,35.54116816,208.55,208.51,0.12549]
[1731532374900,35.54116816,208.52,208.51,0.12549]
[1731532376518,40.33686816,208.52,208.51,0.12549]
[1731532378518,4.7952,208.54,208.51,0.12549]
[1731532378724,35.54116816,208.52,208.51,0.12549]
[1731532379224,35.54116816,208.54,208.51,0.12549]
[1731532379529,35.54116816,208.52,208.51,0.12549]
[1731532379706,35.54116816,208.54,208.51,0.12549]
[1731532380233,35.54116816,208.58,208.51,4.92119]
[1731532380420,35.54116816,208.6,208.51,40.46235816]
[1731532380606,35.54116816,208.62,208.53,35.54116816]
[1731532380809,35.54116816,208.62,208.51,4.92119]
[1731532380810,35.54116816,208.56,208.51,0.12549]
[1731532381032,35.54116816,208.52,208.51,0.12549]
[1731532381412,35.64116816,208.52,208.51,0.12549]
[1731532381724,71.18233632,208.52,208.51,0.12549]
[1731532381938,114.95922032,208.52,208.51,0.12549]
[1731532382319,79.41805216,208.52,208.51,0.12549]
[1731532382518,35.54116816,208.52,208.51,0.12549]
[1731532382824,40.33686816,208.52,208.51,0.12549]
[1731532384034,35.54116816,208.52,208.51,0.12549]
[1731532384345,0.1,208.49,208.44,0.405198]
[1731532384641,0.2,208.45,208.44,9.8e-05]
[1731532384845,0.2,208.45,208.26,42.383]
[1731532384846,0.1,208.39,208.26,47.54516816]
[1731532385154,35.54116816,208.42,208.32,35.54116816]
[1731532385336,35.54116816,208.38,208.3,35.54116816]
[1731532385522,4.7973,208.45,208.3,35.54116816]
[1731532385523,35.54116816,208.4,208.3,35.54116816]
[1731532385723,35.54116816,208.36,208.28,35.54116816]
[1731532385913,35.54116816,208.4,208.32,35.54116816]
[1731532386440,35.54116816,208.38,208.3,35.54116816]
[1731532386639,35.54116816,208.36,208.28,35.54116816]
[1731532387015,35.54116816,208.38,208.3,35.54116816]
[1731532388043,4.7991,208.37,208.3,35.54116816]
[1731532388705,35.54116816,208.4,208.32,35.54116816]
[1731532389133,35.54116816,208.44,208.36,35.54116816]
[1731532389510,35.54116816,208.38,208.29,35.54116816]
[1731532389712,35.54116816,208.32,208.25,35.54116816]
[1731532389938,35.54116816,208.32,208.23,36.01447806]
[1731532390230,4.8005,208.31,208.23,36.01447806]
[1731532390539,35.54116816,208.3,208.23,36.01447806]
[1731532390713,35.54116816,208.32,208.25,35.54116816]
[1731532391127,35.54116816,208.34,208.25,35.54116816]
[1731532391439,35.54116816,208.32,208.23,48.02037806]
[1731532392135,35.54116816,208.32,208.25,35.54116816]
[1731532392658,35.54116816,208.34,208.25,35.54116816]
[1731532392835,35.54116816,208.38,208.29,35.54116816]
[1731532393321,4.7952,208.54,208.37,35.54116816]
[1731532393517,35.54116816,208.49,208.4,35.54116816]
[1731532393737,35.54116816,208.47,208.38,35.54116816]
[1731532394242,35.54116816,208.42,208.32,35.54116816]
[1731532394448,35.54116816,208.45,208.36,35.54116816]
[1731532394930,35.54116816,208.42,208.33,35.54116816]
[1731532395436,35.54116816,208.4,208.31,65.66866816]
[1731532396333,35.54116816,208.42,208.33,35.54116816]
[1731532397042,35.54116816,208.46,208.35,35.54116816]
[1731532397222,35.54116816,208.46,208.37,35.54116816]
[1731532397409,35.54116816,208.52,208.43,35.54116816]
[1731532397610,35.54116816,208.56,208.47,35.54116816]
[1731532398018,35.54116816,208.6,208.51,35.54116816]
[1731532398334,35.54116816,208.6,208.43,0.12549]
[1731532398335,35.54116816,208.62,208.53,35.54116816]
[1731532398533,35.54116816,208.58,208.49,35.54116816]
[1731532398745,35.54116816,208.56,208.47,35.54116816]
[1731532399035,35.54116816,208.62,208.51,35.54116816]
[1731532399333,35.54116816,208.62,208.53,35.54116816]
[1731532399637,35.54116816,208.56,208.49,11.9909]
[1731532399810,35.54116816,208.56,208.48,12.3554]
[1731532400015,35.54116816,208.52,208.45,4.7971]
[1731532400329,35.54116816,208.52,208.4,12.3554]
[1731532400330,35.54116816,208.48,208.41,40.33926816]
[1731532400639,0.1,208.59,208.35,0.1]
[1731532400640,35.54116816,208.46,208.37,35.54116816]
[1731532400812,35.54116816,208.5,208.41,35.54116816]
[1731532401013,35.54116816,208.52,208.45,35.54116816]
[1731532401212,35.54116816,208.54,208.45,35.54116816]
[1731532401424,35.54116816,208.58,208.49,35.54116816]
[1731532401631,40.33546816,208.58,208.49,40.33736816]
[1731532402049,35.54116816,208.62,208.53,35.54116816]
[1731532402333,35.54116816,208.68,208.59,35.54116816]
[1731532402525,4.7906,208.74,208.63,35.54116816]
[1731532402526,35.54116816,208.72,208.63,35.54116816]
[1731532402734,35.54116816,208.7,208.61,35.54116816]
[1731532402915,11.9739,208.79,208.53,0.2]
[1731532402916,19.161473,208.8,208.65,35.54116816]
[1731532403122,35.54116816,208.75,208.65,35.54116816]
[1731532403321,35.54116816,208.71,208.63,35.54116816]
[1731532403521,35.54116816,208.73,208.65,35.54116816]
[1731532403741,35.54116816,208.73,208.63,35.54116816]
[1731532404123,35.54116816,208.71,208.61,35.54116816]
[1731532404529,35.54116816,208.71,208.55,0.2]
[1731532404530,35.54116816,208.7,208.55,35.54116816]
[1731532404734,0.1,208.66,208.49,47.89656816]
[1731532405042,35.54116816,208.51,208.43,4.7977]
[1731532405244,0.1,208.57,208.41,4.798]
[1731532405414,35.54116816,208.49,208.4,16.7944]
[1731532405619,35.54116816,208.49,208.4,35.54116816]
[1731532406055,35.54116816,208.47,208.38,35.54116816]
[1731532406734,0.1,208.55,208.35,16.7986]
[1731532406735,35.54116816,208.43,208.35,16.7986]
[1731532407043,35.54116816,208.41,208.35,11.999]
[1731532407742,35.54116816,208.41,208.33,17.0612]
[1731532407933,35.54116816,208.43,208.34,35.54116816]
[1731532408348,4.795,208.55,208.39,35.54116816]
[1731532408640,35.54116816,208.46,208.37,35.54116816]
[1731532408848,35.54116816,208.48,208.39,35.54116816]
[1731532409024,35.54116816,208.46,208.37,35.54116816]
[1731532409224,35.54116816,208.48,208.39,35.54116816]
[1731532409423,35.54116816,208.5,208.39,35.54116816]
[1731532409637,35.54116816,208.48,208.39,47.53756816]
[1731532409842,184.4687,208.61,208.35,35.54116816]
[1731532409843,35.54116816,208.44,208.35,35.54116816]
[1731532410049,35.54116816,208.42,208.33,47.80236816]
[1731532410217,35.54116816,208.42,208.33,59.80206816]
[1731532410417,20.0,208.49,208.33,59.80206816]
[1731532410418,35.54116816,208.4,208.33,16.7997]
[1731532410640,35.54116816,208.42,208.33,11.9997]
[1731532410844,35.54116816,208.42,208.33,47.54086816]
[1731532411030,35.54116816,208.44,208.33,47.54086816]
[1731532411224,35.54116816,208.44,208.35,35.54116816]
[1731532412348,20.0,208.49,208.33,16.7997]
[1731532412349,35.54116816,208.4,208.33,11.9997]
[1731532413024,35.54116816,208.42,208.33,47.54086816]
[1731532413241,35.54116816,208.34,208.25,47.83216816]
[1731532413424,35.54116816,208.3,208.23,12.4789099]
[1731532413752,35.54116816,208.24,208.23,0.4733099]
[1731532414551,35.54116816,208.26,208.23,0.4733099]
[1731532415455,35.54116816,208.28,208.23,0.4733099]
[1731532415751,35.54116816,208.3,208.23,5.2756099]
[1731532416050,35.54116816,208.3,208.23,17.2815099]
[1731532416353,4.8,208.34,208.23,17.2815099]
[1731532416354,35.54116816,208.34,208.25,35.54116816]
[1731532416525,35.54116816,208.3,208.23,12.4792099]
[1731532417050,35.54116816,208.34,208.25,35.54116816]
[1731532417232,35.54116816,208.32,208.23,52.82267806]
[1731532417846,35.54116816,208.36,208.27,35.54116816]
[1731532418051,35.54116816,208.38,208.29,35.54116816]
[1731532418226,35.54116816,208.4,208.31,35.54116816]
[1731532418423,40.33916816,208.42,208.33,35.54116816]
[1731532418748,35.54116816,208.4,208.31,35.54116816]
[1731532418939,35.54116816,208.38,208.29,35.54116816]
[1731532419142,35.54116816,208.4,208.31,35.54116816]
[1731532419334,35.54116816,208.4,208.32,4.8003]
[1731532419529,35.64116816,208.4,208.25,4.8019]
[1731532419838,35.54116816,208.27,208.23,0.4733099]
[1731532420162,35.54116816,208.24,208.23,0.4733099]
[1731532421547,60.44326816,208.24,208.23,0.4733099]
[1731532421729,60.34326816,208.24,208.23,0.4733099]
[1731532422331,40.34326816,208.24,208.23,0.4733099]
[1731532423354,60.34326816,208.24,208.23,0.4733099]
[1731532423645,60.44326816,208.24,208.23,0.4733099]
[1731532423852,60.34326816,208.24,208.23,0.4733099]
[1731532424429,60.44326816,208.24,208.23,0.4733099]
[1731532424752,60.44326816,208.24,208.02,0.5733099]
[1731532424753,0.1,208.21,208.03,35.54116816]
[1731532424927,43.876884,208.23,208.02,12.4910099]
[1731532424928,35.54116816,208.08,208.02,12.4910099]
[1731532425127,35.54116816,208.08,208.02,0.4733099]
[1731532425550,35.54116816,208.1,208.02,17.2985099]
[1731532425735,35.54116816,208.12,208.03,35.54116816]
[1731532426258,35.54116816,208.08,208.02,0.4733099]
[1731532426948,35.54116816,208.1,208.02,52.83957806]
[1731532427130,4.8042,208.15,208.04,35.54116816]
[1731532427334,35.54116816,208.14,208.04,35.54116816]
[1731532427653,35.54116816,208.17,208.08,35.54116816]
[1731532427965,35.54116816,208.21,208.12,35.54116816]
[1731532428255,35.54116816,208.23,208.14,35.54116816]
[1731532428455,35.54116816,208.21,208.12,35.54116816]
[1731532428668,4.8012,208.28,208.08,35.54116816]
[1731532428669,35.54116816,208.17,208.08,35.54116816]
[1731532429252,35.54116816,208.15,208.06,35.54116816]
[1731532429464,40.34556816,208.15,208.06,35.54116816]
[1731532429633,35.54116816,208.08,207.99,52.36856816]
[1731532429828,35.54116816,208.08,207.99,47.56076816]
[1731532430041,35.54116816,208.06,207.95,0.1]
[1731532430251,35.54116816,208.12,208.03,35.54116816]
[1731532430432,35.54116816,208.14,208.05,35.54116816]
[1731532430635,4.8044,208.15,208.03,35.54116816]
[1731532430636,35.54116816,208.12,208.03,35.54116816]
[1731532431428,35.54116816,208.12,208.03,52.36546816]
[1731532431632,20.0,208.26,208.03,16.8243]
[1731532431832,35.54116816,208.13,208.04,35.54116816]
[1731532432052,35.54116816,208.13,208.03,12.0174]
[1731532432255,35.54116816,208.09,208.02,0.4733099]
[1731532433045,35.54116816,208.13,208.04,35.54116816]
[1731532433564,35.54116816,208.13,208.04,52.36456816]
[1731532433752,4.8049,208.12,208.04,47.55806816]
[1731532433937,35.54116816,208.11,208.04,12.0169]
[1731532434133,35.54116816,208.11,208.02,36.01447806]
[1731532434466,4.8049,208.12,208.04,35.54116816]
[1731532434641,35.54116816,208.11,208.02,52.83957806]
[1731532435045,35.54116816,208.05,208.02,0.4733099]
[1731532435559,35.54116816,208.09,208.02,0.4733099]
[1731532435861,35.54116816,208.09,208.02,5.2803099]
[1731532436037,35.54116816,208.07,208.02,0.4733099]
[1731532436549,35.54116816,208.09,208.02,5.2804099]
[1731532437067,35.54116816,208.13,208.04,35.54116816]
[1731532437442,35.54116816,208.11,208.02,52.83957806]
[1731532437643,35.54116816,208.11,208.02,40.82157806]
[1731532437844,40.34586816,208.13,208.04,35.54116816]
[1731532438762,35.54116816,208.12,208.03,35.54116816]
[1731532439145,35.54116816,208.14,208.03,35.54116816]
[1731532439345,35.54116816,208.14,208.05,35.54116816]
[1731532439861,40.34566816,208.14,208.05,35.54116816]
[1731532440358,35.54116816,208.16,208.07,35.54116816]
[1731532440560,35.54116816,208.14,208.05,35.54116816]
[1731532440770,35.54116816,208.1,208.02,0.4733099]
[1731532440954,4.8042,208.16,208.05,35.54116816]
[1731532440955,35.54116816,208.14,208.05,35.54116816]
[1731532441161,35.54116816,208.12,208.03,35.54116816]
[1731532441358,35.54116816,208.1,208.02,0.4733099]
[1731532441665,4.8069,208.03,208.02,0.4733099]
[1731532442060,24.8069,208.03,208.02,0.4733099]
[1731532442440,4.8069,208.03,208.02,0.4733099]
[1731532443273,35.54116816,208.04,208.02,0.4733099]
[1731532443962,35.54116816,208.06,208.02,0.4733099]
[1731532444348,35.54116816,208.08,208.02,0.4733099]
[1731532444855,35.54116816,208.04,208.02,0.4733099]
[1731532445438,35.54116816,208.08,208.02,0.4733099]
[1731532446062,35.54116816,208.1,208.02,0.4733099]
[1731532446256,35.54116816,208.08,208.02,0.4733099]
[1731532446968,35.54116816,208.08,208.03,4.8069]
[1731532447359,35.54116816,208.14,208.05,35.54116816]
[1731532447665,35.54116816,208.13,208.05,35.54116816]
[1731532448660,4.8049,208.12,208.05,40.34766816]
[1731532449364,35.54116816,208.15,208.07,35.54116816]
[1731532449669,35.54116816,208.21,208.13,35.54116816]
[1731532449851,35.54116816,208.25,208.17,35.54116816]
[1731532450047,54.75196316,208.27,208.17,35.54116816]
[1731532450355,35.54116816,208.23,208.15,35.54116816]
[1731532450558,35.54116816,208.21,208.13,35.54116816]
[1731532450744,35.54116816,208.19,208.12,12.0122]
[1731532450946,4.8029,208.21,208.05,12.6201]
[1731532450947,35.54116816,208.13,208.05,12.6201]
[1731532451150,35.54116816,208.08,208.02,0.4733099]
[1731532451358,35.54116816,208.06,208.02,0.4733099]
[1731532451543,35.54116816,208.04,208.02,0.4733099]
[1731532452471,35.54116816,208.06,208.02,0.4733099]
[1731532452878,35.54116816,208.06,208.02,5.2804099]
[1731532453060,35.54116816,208.1,208.03,35.54116816]
[1731532453259,5.0033,208.19,208.02,12.4913099]
[1731532453260,35.54116816,208.08,208.02,12.4913099]
[1731532453448,35.54116816,208.08,208.02,17.2985099]
[1731532453775,35.54116816,208.08,208.02,12.4913099]
[1731532453977,35.54116816,208.06,208.02,0.4733099]
[1731532454268,35.54116816,208.04,208.02,0.4733099]
[1731532454780,4.8069,208.03,208.02,0.4733099]
[1731532455157,84.22495216,208.03,208.02,9.9e-06]
[1731532455672,35.54116816,207.9,207.86,12.0271]
[1731532455862,0.1,207.99,207.86,12.0271]
[1731532455863,35.54116816,207.92,207.86,12.0271]
[1731532456058,35.54116816,207.94,207.86,12.0271]
[1731532456270,35.54116816,207.94,207.87,35.54116816]
[1731532456454,35.54116816,207.92,207.86,12.0271]
[1731532456653,35.54116816,207.96,207.87,35.54116816]
[1731532456871,35.54116816,207.96,207.89,35.54116816]
[1731532457472,35.54116816,207.98,207.89,35.54116816]
[1731532457860,35.54116816,207.98,207.91,35.54116816]
[1731532458068,35.54116816,207.98,207.89,35.54116816]
[1731532458462,35.54116816,207.96,207.89,35.54116816]
[1731532458772,40.35126816,207.9,207.82,12.5025099]
[1731532459074,35.54116816,207.85,207.82,0.4733099]
[1731532459258,35.54116816,207.87,207.82,0.4733099]
[1731532459449,35.54116816,207.89,207.82,0.4733099]
[1731532459654,35.54116816,207.91,207.82,0.4733099]
[1731532459872,35.54116816,207.95,207.87,35.54116816]
[1731532460064,35.54116816,207.97,207.87,35.54116816]
[1731532460268,35.54116816,207.97,207.89,35.54116816]
[1731532460473,35.54116816,207.99,207.91,35.54116816]
[1731532460778,35.54116816,208.01,207.92,16.8333]
[1731532461158,35.54116816,207.99,207.92,16.8333]
[1731532461373,35.54116816,207.97,207.92,12.0238]
[1731532461556,35.54116816,207.95,207.92,12.0238]
[1731532461754,35.54116816,207.93,207.83,35.54116816]
[1731532461951,35.54116816,207.9,207.84,4.8112]
[1731532462580,35.54116816,207.9,207.81,12.6726]
[1731532462772,35.54116816,207.88,207.83,16.8406]
[1731532463660,35.54116816,207.88,207.83,12.029]
[1731532463977,35.54116816,207.91,207.83,16.8406]
[1731532464767,35.54116816,207.89,207.83,12.029]
[1731532464981,35.54116816,207.89,207.83,16.8406]
[1731532465186,35.54116816,207.87,207.81,4.8119]
[1731532465360,35.54116816,207.85,207.79,4.8124]
[1731532465781,35.54116816,207.85,207.81,4.8119]
[1731532465973,35.54116816,207.85,207.78,12.0317]
[1731532466372,35.54116816,207.83,207.76,4.813]
[1731532466855,35.54116816,207.85,207.8,4.8122]
[1731532467058,30.54116816,207.85,207.8,4.8122]
[1731532467277,35.54116816,207.9,207.77,12.0322]
[1731532467278,35.54116816,207.84,207.77,12.0322]
[1731532467581,4.8102,207.89,207.8,4.8121]
[1731532467788,4.8102,207.89,207.81,4.8119]
[1731532467789,35.54116816,207.86,207.81,4.8119]
[1731532467968,35.54116816,207.88,207.82,5.2850099]
[1731532468487,35.54116816,207.88,207.82,17.3147099]
[1731532468657,35.54116816,207.9,207.82,17.3147099]
[1731532468984,35.54116816,207.94,207.85,35.54116816]
[1731532469388,35.54116816,207.88,207.82,0.4733099]
[1731532469590,35.54116816,207.83,207.82,0.4733099]
[1731532470665,55.54116816,207.83,207.82,0.4733099]
[1731532470864,20.0,207.81,207.67,12.6726]
[1731532471062,35.54116816,207.76,207.67,53.02896816]
[1731532471267,35.54116816,207.78,207.69,35.54116816]
[1731532471588,35.54116816,207.82,207.73,35.54116816]
[1731532472078,35.54116816,207.8,207.71,35.54116816]
[1731532472585,35.54116816,207.87,207.78,35.54116816]
[1731532472788,22.20924265,207.87,207.77,22.20924265]
[1731532472989,22.20924265,207.85,207.77,22.20924265]
[1731532473487,22.20924265,207.81,207.72,22.20924265]
[1731532474169,22.20924265,207.85,207.76,22.20924265]
[1731532474591,22.20924265,207.83,207.76,22.20924265]
[1731532474965,22.20924265,207.85,207.76,22.20924265]